bitfinex-derivatives/quotes_SOLF0:USTF0_20251230
["timestamp","ask_amount","ask_price","bid_price","bid_amount"]
[1767060675213,0.05493714,122.75,122.72,3.45]
[1767060675214,0.00493714,122.75,122.72,3.45]
[1767060675406,0.00493714,122.75,122.72,99.75]
[1767060676715,0.00493714,122.75,122.72,107.0921]
[1767060677214,0.00493714,122.75,122.72,10.7921]
[1767060677512,0.00493714,122.75,122.72,107.0921]
[1767060679514,0.00493714,122.75,122.73,3.28]
[1767060679815,0.00493714,122.75,122.73,3.3420814]
[1767060686223,2.02,122.82,122.75,3.28]
[1767060686429,2.02,122.84,122.77,3.28]
[1767060686620,2.02,122.86,122.77,3.28]
[1767060686821,2.02,122.86,122.79,3.28]
[1767060687326,0.0616504,122.84,122.81,0.05674085]
[1767060687716,0.0616504,122.84,122.81,3.33674085]
[1767060687917,5.30655394,122.88,122.81,3.33674085]
[1767060688123,2.08,122.87,122.81,3.33674085]
[1767060689027,0.05652593,122.85,122.81,3.33674085]
[1767060700144,2.08,122.89,122.82,3.28]
[1767060700544,2.06396279,122.88,122.82,3.28]
[1767060700746,2.08,122.89,122.83,3.28]
[1767060701442,0.05430599,122.87,122.85,0.051823]
[1767060709641,0.00430599,122.87,122.85,3.441823]
[1767060710653,2.18,122.91,122.85,3.441823]
[1767060711852,0.05904334,122.89,122.85,3.441823]
[1767060713250,4.04694862,122.93,122.87,3.39]
[1767060713441,2.18,122.94,122.87,3.39]
[1767060714353,0.06070347,122.92,122.89,0.06044433]
[1767060719053,0.06070347,122.92,122.89,3.35044433]
[1767060720056,0.06070347,122.92,122.89,99.57044433]
[1767060720257,0.06070347,122.92,122.9,12.68546279]
[1767060720557,7.3258,123.0,122.91,3.29]
[1767060720558,4.36396279,123.0,122.91,3.29]
[1767060720756,4.36396279,123.02,122.93,5.35396279]
[1767060720945,11.68886279,123.02,122.94,3.29]
[1767060721448,0.059127,122.99,122.97,0.05991195]
[1767060722359,2.06396279,123.02,122.97,0.05991195]
[1767060723158,0.05443247,123.01,122.97,0.05991195]
[1767060724854,0.05443247,123.01,122.97,3.34991195]
[1767060725162,0.05443247,123.01,122.98,3.29]
[1767060726053,2.41,123.07,123.0,3.29]
[1767060726450,4.47396279,123.09,123.0,3.29]
[1767060726656,4.47396279,123.09,123.01,3.29]
[1767060727055,0.05480618,123.06,123.04,0.05793656]
[1767060732156,117.2596,123.05,122.96,96.14]
[1767060732366,2.06396279,123.04,122.96,96.14]
[1767060732863,2.06396279,123.04,122.97,96.14]
[1767060733066,0.05709388,123.02,122.99,0.05401111]
[1767060733268,0.05709388,123.02,122.92,138.4888]
[1767060733269,5.47105667,123.02,122.94,2.06396279]
[1767060733455,5.41396279,123.02,122.94,98.20396279]
[1767060733957,119.35166279,123.02,122.94,96.14]
[1767060734164,3.35,123.01,122.94,99.43]
[1767060734363,0.05173304,122.99,122.96,0.06137481]
[1767060743968,3.48173304,122.99,122.96,0.06137481]
[1767060745564,0.05173304,122.99,122.96,0.06137481]
[1767060746973,0.05173304,122.99,122.96,3.42137481]
[1767060747270,0.00173304,122.99,122.96,3.42137481]
[1767060752376,0.00173304,122.99,122.96,0.06137481]
[1767060756492,0.00173304,122.99,122.94,3.36]
[1767060756995,2.06396279,122.98,122.94,3.36]
[1767060757594,2.06396279,122.98,122.95,0.06001787]
[1767060761398,0.00173304,122.99,122.95,0.06001787]
[1767060762301,3.43173304,122.99,122.95,0.06001787]
[1767060771603,0.00173304,122.99,122.95,3.36001787]
[1767060773814,3.20173304,122.99,122.95,0.06001787]
[1767060774711,10.52823304,122.99,122.95,0.06001787]
[1767060778418,3.2,122.98,122.95,0.06001787]
[1767060780619,0.00173304,122.99,122.95,3.48001787]
[1767060810344,0.00173304,122.99,122.95,0.06001787]
[1767060813045,3.26,122.98,122.92,3.37]
[1767060813949,0.05298406,122.96,122.94,0.05888929]
[1767060814149,0.05298406,122.96,122.92,3.37]
[1767060815145,0.05298406,122.96,122.93,0.05841808]
[1767060824555,0.05298406,122.96,122.93,3.29841808]
[1767060828369,5.34055176,122.99,122.93,3.29841808]
[1767060829272,0.05708435,122.97,122.93,3.29841808]
[1767060844776,2.11763611,122.97,122.93,3.29841808]
[1767060845274,3.3,123.01,122.93,3.29841808]
[1767060845472,5.36055176,123.03,122.93,114.0175]
[1767060845678,5.36055176,123.03,122.94,3.26]
[1767060846474,0.05840008,123.0,122.97,0.05363898]
[1767060852288,0.05840008,123.0,122.97,3.31363898]
[1767060856991,0.05840008,123.0,122.97,0.05363898]
[1767060860395,0.05840008,123.0,122.97,3.51363898]
[1767060867503,9.38515176,123.02,122.97,3.51363898]
[1767060867504,7.3246,123.02,122.97,3.51363898]
[1767060868586,3.54,123.0,122.95,3.46]
[1767060868792,2.06055176,122.99,122.95,3.46]
[1767060869690,0.05627282,122.98,122.96,0.05726345]
[1767060871793,0.05627282,122.98,122.91,2.06055176]
[1767060871794,2.06055176,122.97,122.91,3.46]
[1767060873103,0.05425949,122.95,122.93,0.06177613]
[1767060884308,3.54,123.0,122.93,3.52177613]
[1767060884509,3.54,123.0,122.94,3.46]
[1767060885500,0.0517133,122.98,122.96,0.05706339]
[1767060890113,0.0517133,122.98,122.96,3.25706339]
[1767060890312,3.54,123.0,122.96,3.25706339]
[1767060891313,0.0537075,122.99,122.96,3.25706339]
[1767060897812,0.0037075,122.99,122.96,3.25706339]
[1767060904233,0.0037075,122.99,122.96,0.05706339]
[1767060906632,3.4237075,122.99,122.94,96.14]
[1767060906834,3.4237075,122.99,122.94,3.48]
[1767060907740,3.4237075,122.99,122.95,0.05570332]
[1767060908036,3.42,122.98,122.92,3.48]
[1767060908940,0.05827598,122.96,122.94,0.05358952]
[1767060910442,0.05827598,122.96,122.94,0.00358952]
[1767060910443,3.47827598,122.96,122.94,0.00358952]
[1767060910830,3.47827598,122.96,122.9,3.48]
[1767060911543,3.42,123.0,122.92,3.48]
[1767060912541,3.42,123.0,122.95,0.05455165]
[1767060912542,0.05944103,122.97,122.95,0.05455165]
[1767060913638,3.42,123.0,122.95,3.53455165]
[1767060913935,7.3254,123.01,122.95,3.53455165]
[1767060914140,6.63831742,123.02,122.95,3.53455165]
[1767060914141,3.42,123.02,122.95,3.53455165]
[1767060914745,0.05998676,123.0,122.95,3.53455165]
[1767060919340,0.05998676,123.0,122.95,10.86305165]
[1767060919540,3.5,123.04,122.95,3.53455165]
[1767060919741,3.5,123.04,122.95,3.48]
[1767060920048,3.5,123.04,122.96,3.44]
[1767060920558,0.06016371,123.01,122.99,0.05892506]
[1767060921049,0.06016371,123.01,122.97,3.44]
[1767060922048,0.06016371,123.01,122.98,0.06061514]
[1767060923556,0.06016371,123.01,122.98,3.50061514]
[1767060928958,0.06016371,123.01,122.98,0.06061514]
[1767060931159,0.06016371,123.01,122.98,3.50061514]
[1767060933067,0.06016371,123.01,122.98,0.06061514]
[1767060933261,10.88536371,123.01,122.96,3.44]
[1767060934166,10.88536371,123.01,122.97,0.05483005]
[1767060939257,3.56016371,123.01,122.97,0.05483005]
[1767060939868,0.06016371,123.01,122.97,3.49483005]
[1767060944670,3.56016371,123.01,122.94,2.05898142]
[1767060945172,10.8258,123.0,122.92,108.31155759]
[1767060945371,10.8258,123.0,122.92,98.17898142]
[1767060945565,0.05725275,122.97,122.95,0.05488993]
[1767060945760,3.33725275,122.97,122.9,2.05898142]
[1767060945966,3.28,122.97,122.88,98.17898142]
[1767060946267,3.28,122.97,122.88,2.05898142]
[1767060946468,12.66718142,122.96,122.88,2.05898142]
[1767060946674,12.66718142,122.96,122.89,3.21]
[1767060946969,0.06215966,122.94,122.91,0.05869597]
[1767060959686,3.28,122.96,122.91,3.26869597]
[1767060960376,2.05898142,122.97,122.91,3.26869597]
[1767060960775,0.05304933,122.95,122.91,3.26869597]
[1767060962079,5.37898142,122.99,122.91,3.26869597]
[1767060962286,5.37898142,122.99,122.92,3.21]
[1767060962580,3.32,122.98,122.92,3.21]
[1767060962769,5.37898142,122.98,122.92,3.21]
[1767060962974,3.32,122.97,122.92,3.21]
[1767060963274,0.05356099,122.96,122.93,0.05700394]
[1767060968088,0.05356099,122.96,122.9,99.37]
[1767060968089,5.43254241,122.96,122.9,99.37]
[1767060969189,5.43254241,122.96,122.92,0.05649826]
[1767060969487,0.05356099,122.96,122.92,3.26649826]
[1767060973790,0.00356099,122.96,122.92,3.26649826]
[1767060990195,0.00356099,122.96,122.92,10.59679826]
[1767060990395,0.00356099,122.96,122.93,3.25]
[1767060992387,0.00356099,122.96,122.93,7.3296]
[1767060992592,0.00356099,122.96,122.95,3.25]
[1767060994604,0.00356099,122.96,122.93,99.41]
[1767061008623,3.37356099,122.96,122.92,0.05649826]
[1767061051958,3.37356099,122.96,122.89,10.6718]
[1767061052159,3.37356099,122.96,122.89,3.34]
[1767061052160,3.43,122.95,122.89,3.34]
[1767061052857,3.43,122.95,122.91,0.05497271]
[1767061052858,0.05224759,122.93,122.91,0.05497271]
[1767061056165,3.48224759,122.93,122.91,0.00497271]
[1767061063666,0.00224759,122.93,122.91,3.34497271]
[1767061063867,3.43,122.99,122.91,3.34497271]
[1767061064066,3.43,122.99,122.92,3.34]
[1767061064874,0.05130102,122.97,122.94,0.05966326]
[1767061079688,0.00130102,122.97,122.94,10.79866326]
[1767061079884,0.00130102,122.97,122.95,3.41]
[1767061081184,0.00130102,122.97,122.95,12.79841857]
[1767061081385,3.34,123.04,122.96,3.41]
[1767061081580,3.34,123.04,122.98,5.46991857]
[1767061081980,3.34,123.04,122.98,3.41]
[1767061082385,0.06108921,123.02,123.0,0.05588255]
[1767061097498,0.06108921,123.02,123.0,3.25588255]
[1767061097690,0.00108921,123.02,123.0,3.25588255]
[1767061099101,96.16,123.07,123.02,3.2]
[1767061099403,3.31,123.07,123.02,3.2]
[1767061100089,0.05921991,123.06,123.03,0.05363914]
[1767061106005,3.36921991,123.06,123.03,0.05363914]
[1767061117418,0.05921991,123.06,123.03,0.05363914]
[1767061119318,0.05921991,123.06,123.03,3.25363914]
[1767061119627,10.6301,123.1,123.03,3.25363914]
[1767061119922,3.31,123.09,123.03,3.25363914]
[1767061120724,0.06009663,123.07,123.03,3.25363914]
[1767061125437,9.663e-05,123.07,123.03,3.25363914]
[1767061125624,9.663e-05,123.07,123.04,3.2]
[1767061126028,10.6296,123.11,123.06,3.37]
[1767061126226,3.31,123.11,123.06,3.37]
[1767061127028,3.31,123.11,123.07,0.05799672]
[1767061127234,0.05361826,123.1,123.07,0.05799672]
[1767061135041,0.05361826,123.1,123.07,3.39799672]
[1767061138337,7.31059905,123.15,123.07,3.39799672]
[1767061138538,7.31059905,123.15,123.07,3.34]
[1767061138938,7.31059905,123.15,123.08,3.34]
[1767061139133,3.23,123.14,123.08,3.34]
[1767061139545,0.05356673,123.12,123.1,0.05532808]
[1767061139939,0.05356673,123.12,123.1,3.39532808]
[1767061151150,0.05356673,123.12,123.1,0.05532808]
[1767061155350,3.28356673,123.12,123.06,3.34]
[1767061156356,3.28356673,123.12,123.08,0.05656656]
[1767061157858,3.28356673,123.12,123.06,3.34]
[1767061158151,3.28356673,123.12,123.05,3.4]
[1767061158357,3.23,123.12,123.05,3.4]
[1767061158658,3.48,123.11,123.05,3.4]
[1767061158858,0.06131189,123.1,123.07,0.0625083]
[1767061160353,0.00131189,123.1,123.07,3.4625083]
[1767061161047,0.00131189,123.1,123.08,3.4]
[1767061161250,3.48,123.17,123.09,3.4]
[1767061162053,3.48,123.17,123.1,3.4]
[1767061162459,0.0592023,123.15,123.1,3.4]
[1767061171166,3.5392023,123.15,123.1,3.4]
[1767061172566,0.0592023,123.15,123.1,10.7195]
[1767061172772,0.0592023,123.15,123.1,7.3195]
[1767061173967,0.00263574,123.15,123.1,3.21230158]
[1767061174167,0.00263574,123.15,123.11,96.02]
[1767061174869,0.00263574,123.15,123.12,0.05680716]
[1767061176972,0.00263574,123.15,123.12,96.07680716]
[1767061177169,0.00263574,123.15,123.12,103.39520716]
[1767061177570,0.00263574,123.15,123.13,96.02]
[1767061189475,5.53306928,123.21,123.13,103.3378]
[1767061189676,3.48,123.2,123.13,103.3378]
[1767061190487,0.06129622,123.18,123.15,0.05450197]
[1767061193983,0.00129622,123.18,123.16,96.0]
[1767061200800,0.00129622,123.18,123.16,103.3157]
[1767061201097,138.0942,123.3,123.17,2.05306928]
[1767061201098,3.44,123.24,123.17,2.05306928]
[1767061201294,3.44,123.24,123.18,95.98]
[1767061201899,0.05124755,123.22,123.2,0.05843348]
[1767061204196,3.44,123.26,123.21,95.98]
[1767061205199,0.06163433,123.25,123.21,95.98]
[1767061208197,0.06163433,123.25,123.2,0.05843348]
[1767061208404,3.50163433,123.25,123.2,96.01843348]
[1767061211006,3.50163433,123.25,123.2,0.05843348]
[1767061213704,10.81273433,123.25,123.2,0.05843348]
[1767061213902,3.44,123.24,123.2,0.05843348]
[1767061221903,3.4,123.23,123.16,103.2557]
[1767061222316,3.4,123.23,123.16,95.94]
[1767061223007,0.05903069,123.21,123.18,0.061254]
[1767061227719,0.05903069,123.21,123.18,7.376054]
[1767061229521,3.4,123.23,123.18,7.376054]
[1767061230623,0.05494373,123.22,123.18,7.376054]
[1767061230824,3.45494373,123.22,123.18,7.376054]
[1767061232022,3.45494373,123.22,123.18,0.061254]
[1767061236127,3.4,123.21,123.16,7.3157]
[1767061237226,3.4,123.21,123.17,0.06167107]
[1767061243735,0.00494373,123.22,123.19,2.05306928]
[1767061243923,0.00494373,123.22,123.19,98.01306928]
[1767061244131,3.4,123.25,123.19,98.01306928]
[1767061244533,3.4,123.28,123.21,115.81066928]
[1767061245039,0.05669175,123.26,123.23,7.36766501]
[1767061247144,0.05669175,123.26,123.23,0.05596501]
[1767061271549,3.46,123.25,123.22,95.96]
[1767061272556,0.05669175,123.26,123.22,96.01831327]
[1767061274546,3.51669175,123.26,123.22,96.01831327]
[1767061277159,3.51669175,123.26,123.19,7.314]
[1767061277359,3.51669175,123.26,123.17,141.40691627]
[1767061277360,3.51669175,123.26,123.17,7.3151]
[1767061277560,3.46,123.26,123.18,95.92]
[1767061277952,3.46,123.26,123.17,7.3151]
[1767061278259,0.05766058,123.23,123.2,0.05199533]
[1767061279660,3.37766058,123.23,123.17,103.2351]
[1767061281558,3.37766058,123.23,123.17,95.92]
[1767061283054,0.05766058,123.23,123.17,103.2354]
[1767061283256,0.05766058,123.23,123.17,95.92]
[1767061284559,0.05766058,123.23,123.18,7.3148]
[1767061287065,0.05766058,123.23,123.19,7.3141]
[1767061288972,3.32,123.27,123.2,95.94]
[1767061289977,0.05661371,123.25,123.22,0.05388189]
[1767061294783,3.32,123.27,123.22,0.05388189]
[1767061295684,0.05503267,123.26,123.22,0.05388189]
[1767061300888,3.37503267,123.26,123.22,0.05388189]
[1767061301789,3.37503267,123.26,123.19,7.3139]
[1767061301993,3.37503267,123.26,123.18,95.92]
[1767061302193,3.32,123.26,123.18,95.92]
[1767061302485,3.32,123.25,123.18,95.92]
[1767061302789,3.38000799,123.23,123.2,0.05673884]
[1767061305486,3.38000799,123.23,123.17,103.2351]
[1767061305685,3.38000799,123.23,123.17,7.3151]
[1767061310689,3.38000799,123.23,123.17,9.36678165]
[1767061311990,3.54,123.21,123.15,7.3163]
[1767061312192,0.05682972,123.19,123.15,7.3163]
[1767061320795,3.44682972,123.19,123.14,103.2571]
[1767061323200,3.39,123.17,123.1,95.96]
[1767061323401,0.05674758,123.15,123.1,95.96]
[1767061323795,0.05674758,123.15,123.11,95.96]
[1767061324601,0.05674758,123.15,123.11,103.2789]
[1767061324897,0.05674758,123.15,123.07,237.90467617]
[1767061325098,0.05860285,123.12,123.08,95.96]
[1767061325304,0.05860285,123.12,123.08,98.01168165]
[1767061326604,0.05860285,123.12,123.09,7.32]
[1767061327301,0.05860285,123.12,123.08,98.01168165]
[1767061327508,0.05860285,123.12,123.08,95.96]
[1767061328508,0.05860285,123.12,123.06,236.34148165]
[1767061328709,0.05860285,123.12,123.08,7.3207]
[1767061330504,0.05860285,123.12,123.08,9.37238165]
[1767061337313,3.39,123.15,123.09,7.3201]
[1767061338218,0.05672999,123.13,123.11,0.05453328]
[1767061346020,3.44672999,123.13,123.07,7.3211]
[1767061346222,3.44672999,123.13,123.07,103.3211]
[1767061347521,3.44672999,123.13,123.05,105.37398165]
[1767061347724,0.05340968,123.1,123.05,98.05168165]
[1767061347924,0.05340968,123.1,123.05,2.05168165]
[1767061348120,0.00340968,123.1,123.05,211.95818165]
[1767061348319,3.39,123.14,123.07,2.05168165]
[1767061348525,3.39,123.16,123.09,2.05168165]
[1767061349522,3.44282342,123.14,123.08,96.02]
[1767061349727,3.44282342,123.14,123.06,98.07168165]
[1767061349919,5.44168165,123.14,123.06,98.07168165]
[1767061350118,3.39,123.13,123.06,96.02]
[1767061350425,0.05942562,123.11,123.06,96.02]
[1767061350625,3.44942562,123.11,123.05,7.3223]
[1767061350827,0.0572659,123.09,123.05,7.3223]
[1767061352916,3.4472659,123.09,123.03,7.3238]
[1767061353116,3.4472659,123.09,123.0,138.3564]
[1767061353328,3.39,123.09,123.0,2.05168165]
[1767061354221,0.0616611,123.06,123.03,0.05563694]
[1767061355635,3.4516611,123.06,123.0,2.05168165]
[1767061356232,3.4516611,123.06,122.99,13.13978416]
[1767061358131,0.0616611,123.06,123.0,9.37678165]
[1767061358727,0.0616611,123.06,123.0,105.41678165]
[1767061360734,0.0616611,123.06,123.01,7.3247]
[1767061362335,0.0616611,123.06,123.01,103.3847]
[1767061362927,0.0616611,123.06,123.01,96.06]
[1767061363332,0.0616611,123.06,122.99,225.21356581]
[1767061363637,3.4516611,123.06,122.99,111.25136581]
[1767061370740,3.4516611,123.06,123.0,7.3255]
[1767061372136,0.0616611,123.06,123.01,2.05168165]
[1767061372543,0.0616611,123.06,123.0,117.16645481]
[1767061372743,0.0616611,123.06,123.02,96.08]
[1767061373646,0.0616611,123.06,123.02,103.4043]
[1767061378653,0.0616611,123.06,123.02,96.08]
[1767061382754,0.0616611,123.06,123.01,103.4049]
[1767061383951,0.0616611,123.06,123.02,7.3244]
[1767061384153,0.0616611,123.06,123.01,210.024]
[1767061385551,0.0616611,123.06,123.03,7.3237]
[1767061389156,0.0016611,123.06,123.03,7.37856147]
[1767061393848,0.0016611,123.06,123.04,7.3231]
[1767061394143,0.0016611,123.06,123.04,103.4031]
[1767061398964,3.2,123.1,123.04,103.4031]
[1767061400068,0.05657577,123.08,123.06,0.06088336]
[1767061408874,3.46,123.12,123.06,0.06088336]
[1767061409185,10.7778,123.14,123.06,3.27443817]
[1767061409375,3.46,123.14,123.07,96.06]
[1767061409977,0.05218713,123.12,123.09,0.05855278]
[1767061415990,3.51218713,123.12,123.06,103.3617]
[1767061416889,3.51218713,123.12,123.08,0.05406661]
[1767061420390,3.46,123.11,123.02,3.21355481]
[1767061420591,3.46,123.11,123.03,96.04]
[1767061421396,0.06045195,123.08,123.03,96.04]
[1767061421688,0.06045195,123.08,123.03,103.3637]
[1767061424687,0.06045195,123.08,123.03,7.3237]
[1767061424889,3.52045195,123.08,123.03,96.04]
[1767061429902,0.06045195,123.08,123.03,103.3637]
[1767061430298,0.06045195,123.08,123.04,7.3231]
[1767061438004,0.00045195,123.08,123.04,7.3231]
[1767061438597,0.00045195,123.08,123.05,7.3223]
[1767061439108,0.00045195,123.08,123.05,7.37784301]
[1767061449213,0.00045195,123.08,123.05,0.05554301]
[1767061450906,3.44045195,123.08,123.05,0.05554301]
[1767061451111,3.44,123.06,122.99,12.18881375]
[1767061451303,3.44,123.06,122.98,124.10077617]
[1767061451503,3.44,123.06,122.99,96.04]
[1767061451999,3.49470737,123.04,122.99,103.3666]
[1767061452503,2.05623758,123.03,122.97,5.68251606]
[1767061452699,0.05903316,123.01,122.97,5.68251606]
[1767061452902,0.05903316,123.01,122.95,1.41265299]
[1767061453111,0.05903316,123.01,122.95,97.45265299]
[1767061453412,3.49903316,123.01,122.95,103.369]
[1767061453614,5.55527074,123.01,122.95,7.329]
[1767061453816,3.44,122.98,122.91,114.0451]
[1767061454010,3.44,122.98,122.92,96.06]
[1767061454315,3.44,122.98,122.91,211.52071242]
[1767061454516,3.44,122.98,122.91,104.80711242]
[1767061455114,0.05786851,122.96,122.93,0.05919665]
[1767061457514,3.55786851,122.96,122.93,0.05919665]
[1767061457720,3.55786851,122.96,122.89,219.53163758]
[1767061459101,3.55786851,122.96,122.86,201.20300659]
[1767061459102,5.61410609,122.96,122.87,116.14113758]
[1767061459304,0.06100898,122.93,122.87,116.14113758]
[1767061459612,0.06100898,122.93,122.88,96.1]
[1767061460717,0.06100898,122.93,122.88,103.4332]
[1767061461305,3.56100898,122.93,122.87,2.05623758]
[1767061461505,3.56100898,122.93,122.87,98.15623758]
[1767061462615,3.56100898,122.93,122.87,96.1]
[1767061463211,0.06100898,122.93,122.87,210.1868]
[1767061463416,0.06100898,122.93,122.89,2.05623758]
[1767061463612,3.56100898,122.93,122.87,96.1]
[1767061463820,3.5,122.92,122.85,114.1055]
[1767061464023,0.0596714,122.9,122.85,114.1055]
[1767061464221,0.0596714,122.9,122.86,7.3347]
[1767061464809,0.0596714,122.9,122.84,96.12]
[1767061465009,0.0596714,122.9,122.84,210.2322]
[1767061465620,0.0596714,122.9,122.85,2.05623758]
[1767061466719,0.0596714,122.9,122.85,9.39143758]
[1767061468413,0.0596714,122.9,122.84,3.47262782]
[1767061468619,0.0596714,122.9,122.84,99.63262782]
[1767061468926,0.0596714,122.9,122.84,98.21623758]
[1767061469132,0.0596714,122.9,122.84,2.05623758]
[1767061469421,0.0596714,122.9,122.84,98.21623758]
[1767061469627,0.0596714,122.9,122.84,212.33043758]
[1767061470028,0.0596714,122.9,122.85,96.16]
[1767061470630,3.5,122.93,122.86,9.39063758]
[1767061470835,3.5,122.96,122.88,116.12873758]
[1767061471320,3.5,122.96,122.89,96.16]
[1767061471730,0.0622042,122.94,122.91,0.05794797]
[1767061473626,3.5,122.96,122.91,0.05794797]
[1767061474330,3.5,122.96,122.91,2.11418555]
[1767061474731,0.0587518,122.95,122.91,9.44568555]
[1767061484644,3.5587518,122.95,122.91,2.11418555]
[1767061484935,3.5587518,122.95,122.91,0.05794797]
[1767061487937,5.61498938,122.95,122.88,103.4932]
[1767061488142,3.5,122.94,122.88,103.4932]
[1767061488943,0.05381021,122.92,122.9,0.05474974]
[1767061494147,3.5,122.9,122.81,116.19453758]
[1767061494348,3.5,122.88,122.79,116.21043758]
[1767061494546,3.5,122.88,122.79,210.3342]
[1767061495156,0.05179844,122.85,122.82,0.02229851]
[1767061496855,3.26179844,122.85,122.82,0.00229851]
[1767061497552,0.05179844,122.85,122.82,0.00229851]
[1767061499755,3.21,122.88,122.82,0.00229851]
[1767061500662,0.05153379,122.86,122.82,0.00229851]
[1767061500961,3.26153379,122.86,122.82,0.00229851]
[1767061502954,3.21,122.85,122.77,1.41716892]
[1767061503156,3.21,122.84,122.74,117.4696]
[1767061503753,3.21,122.84,122.75,3.27]
[1767061503955,0.0555112,122.81,122.78,0.05179844]
[1767061504261,3.2655112,122.81,122.78,0.00179844]
[1767061504648,3.2655112,122.81,122.75,3.27]
[1767061505254,3.2655112,122.81,122.72,100.90765964]
[1767061505458,3.21,122.8,122.72,99.49]
[1767061505666,3.26622475,122.78,122.72,99.49]
[1767061506065,3.26622475,122.78,122.72,3.27]
[1767061506754,3.26622475,122.78,122.7,99.49]
[1767061506955,3.21,122.78,122.7,99.49]
[1767061507956,0.06198074,122.75,122.7,99.49]
[1767061508167,0.06198074,122.75,122.7,106.834]
[1767061510271,3.21,122.77,122.71,10.6134]
[1767061510765,3.21,122.8,122.72,3.27]
[1767061510960,114.1525,122.8,122.69,7.3446]
[1767061511164,0.05882634,122.76,122.71,3.27]
[1767061511875,0.05882634,122.76,122.71,10.6137]
[1767061512260,3.21,122.78,122.72,3.27]
[1767061512867,3.21,122.78,122.72,10.6128]
[1767061513273,0.05709197,122.76,122.74,0.06026789]
[1767061514760,3.26709197,122.76,122.68,3.27]
[1767061515071,3.21,122.76,122.68,99.55]
[1767061515276,3.21,122.76,122.68,3.27]
[1767061515569,3.21,122.76,122.68,10.6154]
[1767061515969,0.05303534,122.73,122.68,10.6154]
[1767061517269,0.05303534,122.73,122.66,17.29052914]
[1767061517270,3.50303534,122.73,122.66,17.29052914]
[1767061517759,3.50303534,122.73,122.66,9.94402914]
[1767061518075,6.72891624,122.73,122.66,6.54402914]
[1767061518373,3.45,122.72,122.66,6.54402914]
[1767061518574,0.05122957,122.7,122.66,6.54402914]
[1767061520478,3.50122957,122.7,122.66,6.54402914]
[1767061520668,3.50122957,122.7,122.62,10.7487]
[1767061520862,0.05976706,122.67,122.62,10.7487]
[1767061521170,0.05976706,122.67,122.63,3.4]
[1767061521374,0.56,122.73,122.65,3.4]
[1767061522269,0.05508608,122.7,122.68,0.05976706]
[1767061523378,0.05508608,122.7,122.65,3.4]
[1767061523766,0.5,122.73,122.66,117.6805]
[1767061523971,0.5,122.77,122.67,117.6729]
[1767061524162,0.5,122.77,122.68,3.4]
[1767061524568,0.5,122.76,122.68,10.7451]
[1767061524967,0.0561345,122.73,122.71,0.05493581]
[1767061525163,0.56,122.78,122.71,0.05493581]
[1767061525368,0.56,122.78,122.72,3.4]
[1767061526277,0.05602288,122.76,122.7,3.4]
[1767061526669,0.56602288,122.76,122.7,3.4]
[1767061527374,0.56602288,122.76,122.72,0.00235177]
[1767061527673,0.51,122.76,122.72,0.00235177]
[1767061528582,0.05864866,122.75,122.72,0.00235177]
[1767061530379,0.51864866,122.75,122.72,0.00235177]
[1767061530573,2.13864866,122.75,122.72,0.00235177]
[1767061530772,0.46,122.73,122.64,3.4]
[1767061531577,0.46,122.73,122.64,10.7476]
[1767061531785,0.05637385,122.7,122.64,10.7476]
[1767061532578,0.05637385,122.7,122.65,3.4]
[1767061534178,0.05637385,122.7,122.65,10.747]
[1767061536382,0.46,122.75,122.67,3.4]
[1767061537477,0.0565854,122.72,122.7,0.06156924]
[1767061538384,7.9103,122.77,122.7,0.06156924]
[1767061538586,0.57,122.76,122.7,0.06156924]
[1767061539086,7.911,122.76,122.7,0.06156924]
[1767061539291,0.05486086,122.74,122.7,0.06156924]
[1767061540280,0.62486086,122.74,122.7,0.06156924]
[1767061547579,0.62486086,122.74,122.7,0.00156924]
[1767061550896,0.05486086,122.74,122.7,3.28156924]
[1767061552795,0.00486086,122.74,122.7,10.62566924]
[1767061552991,0.00486086,122.74,122.71,3.28]
[1767061553184,0.51,122.78,122.71,3.28]
[1767061553784,96.34,122.79,122.71,3.28]
[1767061554294,0.56,122.8,122.74,0.05575198]